Cogmind - Beta 9.3 @@@ ROGUE MODE // 2019.12.21 @ 17:32:09 // Winter2019/RPGLIKE Player: badjay Result: Destroyed by Y-64 Sentinel with Wave Gun Performance ------------- Evolutions (5) 2500 Regions Visited (8) 1600 Robots Destroyed (2) 10 Value Destroyed (42) 42 Prototype IDs (16) 320 Alien Tech Used (0) 0 Bonus (894) 894 TOTAL SCORE: 5366 Bonus ------- Pacifist 834 Follower Combat Kills 60 Cogmind --------- Core Integrity 0/600 Matter 300/300 Energy 149/160 System Corruption 0% Temperature Cool (-137) Movement Flying (34) Location -5/Extension Parts ------- > --- POWER (2) -------- Light Nuclear Core > --- PROPULSION (2) --- Improved Cesium-ion Thruster Nuclear Pulse Thruster > --- UTILITY (7) ------ Improved Cryofiber Web Transport Network Coupler Advanced ECM Suite Improved Maneuvering Thrusters Phase Shifter Hacking Suite > --- WEAPON (1) ------- Katana > --- INVENTORY (1) ---- Improved Datajack Peak State ------------ > --- POWER ------------ Light Nuclear Core Light Nuclear Core > --- PROPULSION ------- Improved Cesium-ion Thruster Nuclear Pulse Thruster > --- UTILITY ---------- Improved Cryofiber Web Transport Network Coupler Advanced ECM Suite Improved Maneuvering Thrusters Phase Shifter Hacking Suite > --- WEAPON ----------- Katana > --- INVENTORY -------- Improved Datajack [Rating: 43] Favorites ----------- Power Light Nuclear Core Engine Light Ion Engine Power Core Light Nuclear Core Propulsion Improved Cesium-ion Thruster Flight Unit Improved Cesium-ion Thruster Utility System Shield Device Improved Cryofiber Web Processor Advanced Terrain Scan Processor Hackware System Shield Weapon Datajack Energy Gun Gatling Laser Impact Weapon Hammer Slashing Weapon Katana Special Melee Weapon Datajack Build | -11 -10 -10 -9 -8 -7 -6 -5 -5 ------- Run | Scr Mat Min Mat Mat Fac Fac Fac Ext Slots Evolved 8 | . . . 3 1 . 2 2 . Power 1 | . . . 1 . . . . . Propulsion 1 | . . . 1 . . . . . Utility 6 | . . . 1 1 . 2 2 . Weapon . | . . . . . . . . . Parts Attached 24 | . 4 1 1 . 6 10 . 2 Power 3 | . 1 . . . 1 . . 1 Engine 1 | . 1 . . . . . . . Core 2 | . . . . . 1 . . 1 Reactor . | . . . . . . . . . Propulsion 4 | . 1 . . . 1 2 . . Treads . | . . . . . . . . . Leg . | . . . . . . . . . Wheel . | . . . . . . . . . Hover . | . . . . . . . . . Flight 4 | . 1 . . . 1 2 . . Utility 11 | . . 1 1 . 2 6 . 1 Device 5 | . . . . . . 5 . . Storage . | . . . . . . . . . Processor 3 | . . . 1 . 1 . . 1 Hackware 3 | . . 1 . . 1 1 . . Protection . | . . . . . . . . . Artifact . | . . . . . . . . . Weapon 6 | . 2 . . . 2 2 . . Energy Gun 1 | . . . . . 1 . . . Energy Cannon . | . . . . . . . . . Ballistic Gun . | . . . . . . . . . Ballistic Cannon . | . . . . . . . . . Launcher . | . . . . . . . . . Special Weapon . | . . . . . . . . . Impact Weapon 1 | . 1 . . . . . . . Slashing Weapon 1 | . . . . . . 1 . . Piercing Weapon . | . . . . . . . . . Special Melee Weapon 3 | . 1 . . . 1 1 . . Unidentified Prototypes 1 | . . . . . . 1 . . Parts Lost 1 | . . . . . . 1 . . Power 1 | . . . . . . 1 . . Propulsion . | . . . . . . . . . Utility . | . . . . . . . . . Weapon . | . . . . . . . . . Highest Loss Streak 1 | . . . . . . 1 . . Average Slot Usage (%) 82 | . 25 87 71 63 77 94 85 81 Engine 7 | . 16 25 14 12 12 6 . . Core 5 | . . . . . . 10 9 8 Flight 19 | . 8 25 14 12 21 20 18 16 Device 13 | . . . . . . 12 37 33 Processor 7 | . . . 14 12 12 8 . 6 Hackware 16 | . . 12 14 12 19 24 9 8 Slashing Weapon 3 | . . . . . . 2 9 8 Special Melee Weapon 7 | . . 25 14 12 11 7 . . Naked Turns 9 | . 9 . . . . . . . Heaviest Build 14 | . 4 4 4 4 9 14 14 14 Greatest Support 16 | 3 4 4 4 4 9 16 16 16 Greatest Overweight (x) . | . . . . . . . . . Average Overweight (x) . | . . . . . . . . . Largest Inventory Capacity 1 | . . 1 1 1 1 1 1 1 Average Capacity . | . . . 1 1 1 1 1 1 Most Carried 1 | . . 1 1 . . 1 1 1 Average Carried . | . . . . . . . 1 1 Final Capacity 1 | . . 1 1 1 1 1 1 1 Final Carried 1 | . . 1 . . . 1 1 1 Class Distribution -------------------- 79% | Hacker-Mutant 18% | Wizard-Mutant Dominant Class ---------------- Mutant | -10/Materials Mutant | -10/Mines Hacker-Mutant | -9/Materials Hacker-Mutant | -8/Materials Hacker-Mutant | -7/Factory Wizard-Mutant | -6/Factory Hacker-Mutant | -5/Factory Hacker-Mutant | -5/Extension Resources | -11 -10 -10 -9 -8 -7 -6 -5 -5 ----------- Run | Scr Mat Min Mat Mat Fac Fac Fac Ext Matter Collected 435 | 185 . . . . 48 . 79 123 Remotely . | . . . . . . . . . Salvage Created 118 | . . . . . . . . 118 Parts 3 | . . . . . . . . 3 Haulers Intercepted 1 | . . . . . . . . 1 Recyclers Shooed . | . . . . . . . . . Parts Field Recycled . | . . . . . . . . . Retrieved Matter . | . . . . . . . . . Parts Self-Destructed . | . . . . . . . . . Prevented . | . . . . . . . . . Kills | -11 -10 -10 -9 -8 -7 -6 -5 -5 ------- Run | Scr Mat Min Mat Mat Fac Fac Fac Ext Combat Hostiles Destroyed 1 | . . . . . 1 . . . Guns 1 | . . . . . 1 . . . Classes Destroyed 2 | . . . . . 1 . . 1 Hauler 1 | . . . . . . . . 1 Swarmer 1 | . . . . . 1 . . . Best Kill Streak 1 | . . . . . 1 . . 1 Combat Bots Only 1 | . . . . . 1 . . . Max Kills in Single Turn 1 | . . . . . 1 . . 1 Gunslinging . | . . . . . . . . . Exploded . | . . . . . . . . . Melee . | . . . . . . . . . Uniques/NPCs Destroyed . | . . . . . . . . . Combat | -11 -10 -10 -9 -8 -7 -6 -5 -5 -------- Run | Scr Mat Min Mat Mat Fac Fac Fac Ext Damage Taken 911 | . 43 . 115 161 198 148 . 246 Core 794 | . 35 . 107 147 168 129 . 208 Absorbed by Shields . | . . . . . . . . . Redirected to Core 390 | . 22 . 23 50 95 59 . 141 Core Remaining (%) 70 | 100 . 100 82 57 53 31 . . Volleys Fired 1 | . . . . . 1 . . . Largest 1 | . . . . . 1 . . . Hottest 80 | . . . . . 80 . . . Shots Fired 1 | . . . . . 1 . . . Gun 1 | . . . . . 1 . . . Cannon . | . . . . . . . . . Launcher . | . . . . . . . . . Special . | . . . . . . . . . Kinetic . | . . . . . . . . . Thermal 1 | . . . . . 1 . . . Explosive . | . . . . . . . . . Electromagnetic . | . . . . . . . . . Robot Hit Streak 2 | . . . . . 2 . . . Robot Miss Streak 1 | . . . . . 1 . . . Penetration Max . | . . . . . . . . . Secondary Targets . | . . . . . . . . . Shots Hit Robots 2 | . . . . . 1 . . 1 Core Hits 2 | . . . . . 1 . . 1 Critical Hits . | . . . . . . . . . Critical Kills . | . . . . . . . . . Critical Parts Destroyed . | . . . . . . . . . Melee Attacks 3 | . . . . . . 1 1 1 Impact . | . . . . . . . . . Slashing 3 | . . . . . . 1 1 1 Piercing . | . . . . . . . . . Sneak Attacks 1 | . . . . . . . . 1 Combat Hostiles . | . . . . . . . . . Follow-up Attacks . | . . . . . . . . . Damage Inflicted 104 | . . . . . 12 . . 92 Guns 12 | . . . . . 12 . . . Cannons . | . . . . . . . . . Explosions . | . . . . . . . . . Melee 92 | . . . . . . . . 92 Ramming . | . . . . . . . . . Kinetic . | . . . . . . . . . Thermal 12 | . . . . . 12 . . . Explosive . | . . . . . . . . . Electromagnetic . | . . . . . . . . . Impact . | . . . . . . . . . Slashing 92 | . . . . . . . . 92 Piercing . | . . . . . . . . . Highest Corruption 2 | . 2 2 1 . . . . . Average Corruption 1 | . 2 2 1 . . . . . Corruption Purged . | . . . . . . . . . Effects 1 | . . . 1 . . . . . Energy Discharges 1 | . . . 1 . . . . . Overload Shots . | . . . . . . . . . Overflow Damage . | . . . . . . . . . Projectiles . | . . . . . . . . . Explosions . | . . . . . . . . . Melee . | . . . . . . . . . Knockbacks . | . . . . . . . . . Impact . | . . . . . . . . . Kinetic . | . . . . . . . . . Secondary . | . . . . . . . . . Self-Inflicted Damage . | . . . . . . . . . Shots . | . . . . . . . . . Rammed . | . . . . . . . . . Targets Rammed . | . . . . . . . . . Kicked . | . . . . . . . . . Crushed . | . . . . . . . . . Highest Temperature 42 | . . . . 1 42 . . . Average Temperature 15 | . . . . 1 23 . . . Received Heat Transfer 177 | . . . 12 63 18 39 . 45 Siege Activations . | . . . . . . . . . Robots Corrupted . | . . . . . . . . . Combat Hostiles . | . . . . . . . . . Parts Fried . | . . . . . . . . . Impact Corruptions . | . . . . . . . . . Robots Melted . | . . . . . . . . . Combat Hostiles . | . . . . . . . . . Parts Melted . | . . . . . . . . . Heat Transferred 25 | . . . . . 25 . . . Parts Sabotaged . | . . . . . . . . . Parts Stolen . | . . . . . . . . . Parts Stripped . | . . . . . . . . . Power Chain Reactions . | . . . . . . . . . Missiles Intercepted . | . . . . . . . . . Alert | -11 -10 -10 -9 -8 -7 -6 -5 -5 ------- Run | Scr Mat Min Mat Mat Fac Fac Fac Ext Peak Influence 220 | . 15 20 37 45 207 220 209 204 Average Influence 113 | . 6 10 23 33 82 164 157 123 Maximum Alert Level 1 | . . . . . 1 1 1 1 Low Security (%) 81 | 100 100 100 100 100 96 57 76 97 Level 1 18 | . . . . . 3 42 23 2 Level 2 . | . . . . . . . . . Level 3 . | . . . . . . . . . Level 4 . | . . . . . . . . . Level 5 . | . . . . . . . . . High Security . | . . . . . . . . . Max Security . | . . . . . . . . . Squads Dispatched 7 | . . 1 1 1 1 1 2 . Investigation 2 | . . 1 . . . . 1 . Extermination . | . . . . . . . . . Reinforcement 5 | . . . 1 1 1 1 1 . Assault . | . . . . . . . . . Garrison . | . . . . . . . . . Intercept . | . . . . . . . . . Construction Impeded . | . . . . . . . . . Haulers Reinforced . | . . . . . . . . . Stealth | -11 -10 -10 -9 -8 -7 -6 -5 -5 --------- Run | Scr Mat Min Mat Mat Fac Fac Fac Ext Distress Signals . | . . . . . . . . . Communications Jammed . | . . . . . . . . . Distress Signals . | . . . . . . . . . Times Spotted 73 | . 4 1 17 5 16 20 3 7 Peak Tracking Total 16 | . 3 1 14 4 8 16 2 6 Tactical Retreats 9 | . . . 1 . 2 5 1 . Traps | -11 -10 -10 -9 -8 -7 -6 -5 -5 ------- Run | Scr Mat Min Mat Mat Fac Fac Fac Ext Traps Triggered 4 | . 1 . 1 . 2 . . . Indirectly . | . . . . . . . . . Trap Hack Attempts . | . . . . . . . . . Triggered . | . . . . . . . . . Disarmed . | . . . . . . . . . Reprogrammed . | . . . . . . . . . Reused . | . . . . . . . . . Traps Extracted . | . . . . . . . . . Installed . | . . . . . . . . . Triggered . | . . . . . . . . . Machines | -11 -10 -10 -9 -8 -7 -6 -5 -5 ---------- Run | Scr Mat Min Mat Mat Fac Fac Fac Ext Machines Disabled . | . . . . . . . . . Max in Single Turn . | . . . . . . . . . Machines Sabotaged . | . . . . . . . . . Garrisons Compromised . | . . . . . . . . . Overloaded Fab Kills . | . . . . . . . . . Fab Network Shutdowns . | . . . . . . . . . Hacking | -11 -10 -10 -9 -8 -7 -6 -5 -5 --------- Run | Scr Mat Min Mat Mat Fac Fac Fac Ext Machines Accessed 18 | . . 1 3 1 3 4 5 1 Terminals 16 | . . . 3 1 3 3 5 1 Fabricators . | . . . . . . . . . Repair Stations . | . . . . . . . . . Recycling Units . | . . . . . . . . . Scanalyzers . | . . . . . . . . . Garrison Access 1 | . . . . . . 1 . . Total Hacks 107 | . . 1 17 7 17 30 29 6 Successful 82 | . . 1 16 4 12 23 21 5 Failed 24 | . . . 1 3 5 7 7 1 Catastrophic . | . . . . . . . . . Database Lockouts 2 | . . . . . . . 2 . Manual 68 | . . . 11 3 10 22 17 5 Terminals 100 | . . . 17 7 17 24 29 6 Fabricators . | . . . . . . . . . Repair Stations . | . . . . . . . . . Recycling Units . | . . . . . . . . . Scanalyzers . | . . . . . . . . . Garrison Access 6 | . . . . . . 6 . . Terminal Hacks 42 | . . 1 9 1 4 10 15 2 Part Schematic 1 | . . . . . . . 1 . Robot Schematic 1 | . . . . . . 1 . . Prototype ID Bank 6 | . . . 1 1 . 1 3 . Open Door 3 | . . 1 . . . . 1 1 Level Access Points 2 | . . . 1 . . 1 . . Branch Access Points 4 | . . . 1 . 1 1 1 . Emergency Access Points 2 | . . . . . . . 2 . Terminal Index 3 | . . . 1 . . 1 1 . Garrison Index 1 | . . . . . . 1 . . Dispatch Records 1 | . . . . . . . 1 . Investigation Status 1 | . . . 1 . . . . . Assault Status 1 | . . . . . . . 1 . Recall Reinforcements 1 | . . . 1 . . . . . Registered Components 4 | . . . 1 . 1 1 1 . Registered Prototypes 3 | . . . 1 . 1 . 1 . Zone Layout 8 | . . . 1 . 1 3 2 1 Fabricator Hacks . | . . . . . . . . . Repair Station Hacks . | . . . . . . . . . Recycling Unit Hacks . | . . . . . . . . . Scanalyzer . | . . . . . . . . . Garrison Access Hacks . | . . . . . . . . . Unauthorized Hacks 88 | . . . 14 6 18 32 12 6 Terminals 36 | . . . 7 3 8 9 6 3 Track 13 | . . . 2 1 3 3 3 1 Assimilate 2 | . . . . . 1 1 . . Botnet 12 | . . . 3 1 2 3 2 1 Disrupt 3 | . . . 1 . . 1 . 1 Operators 6 | . . . 1 1 2 1 1 . Fabricators . | . . . . . . . . . Repair Stations . | . . . . . . . . . Recycling Units . | . . . . . . . . . Scanalyzers . | . . . . . . . . . Garrison Access 4 | . . . . . . 4 . . Broadcast 1 | . . . . . . 1 . . Decoy 1 | . . . . . . 1 . . Reprogram 1 | . . . . . . 1 . . Watchers 1 | . . . . . . 1 . . Data Cores Recovered . | . . . . . . . . . Used . | . . . . . . . . . Hacking Detections 16 | . . . 2 1 3 4 5 1 Full Trace Events . | . . . . . . . . . Feedback Events . | . . . . . . . . . Feedback Blocked . | . . . . . . . . . Robot Schematics Acquired 1 | . . . . . . 1 . . Robots Built . | . . . . . . . . . Matter . | . . . . . . . . . Time . | . . . . . . . . . Total Robot Build Rating . | . . . . . . . . . Part Schematics Acquired 1 | . . . . . . . 1 . Parts Built . | . . . . . . . . . Matter . | . . . . . . . . . Time . | . . . . . . . . . Total Part Build Rating . | . . . . . . . . . Parts Repaired . | . . . . . . . . . Time . | . . . . . . . . . Parts Recycled . | . . . . . . . . . Recycled Matter . | . . . . . . . . . Retrieved Matter . | . . . . . . . . . Retrieved Components . | . . . . . . . . . Parts Scanalyzed . | . . . . . . . . . Part Schematics Acquired . | . . . . . . . . . Parts Damaged . | . . . . . . . . . Bothacking | -11 -10 -10 -9 -8 -7 -6 -5 -5 ------------ Run | Scr Mat Min Mat Mat Fac Fac Fac Ext Used RIF Installer . | . . . . . . . . . Robots Hacked . | . . . . . . . . . Non-combat . | . . . . . . . . . Combat . | . . . . . . . . . Robot Hacks Applied . | . . . . . . . . . Relay Couplers Released . | . . . . . . . . . Robots Rewired . | . . . . . . . . . Allies Hacked . | . . . . . . . . . Hacks Repelled . | . . . . . . . . . Allies | -11 -10 -10 -9 -8 -7 -6 -5 -5 -------- Run | Scr Mat Min Mat Mat Fac Fac Fac Ext Total Allies 3 | . . . . . 1 1 . 1 Largest Group 1 | . . . . . 1 1 1 1 Highest-Rated Group 31 | . . . . . 26 26 10 31 Highest-Rated Ally 31 | . . . . . 26 26 10 31 Total Orders . | . . . . . . . . . Ally Attacks 8 | . . . . . . . . 8 Total Damage 85 | . . . . . . . . 85 Kills 3 | . . . . . . . . 3 Allies Corrupted . | . . . . . . . . . Allies Melted . | . . . . . . . . . Intel | -11 -10 -10 -9 -8 -7 -6 -5 -5 ------- Run | Scr Mat Min Mat Mat Fac Fac Fac Ext Robot Analysis Total . | . . . . . . . . . Derelict Logs Recovered 1 | . . 1 . . . . . . Drone Launches . | . . . . . . . . . Drone Recoveries . | . . . . . . . . . Exploration | -11 -10 -10 -9 -8 -7 -6 -5 -5 ------------- Run | Scr Mat Min Mat Mat Fac Fac Fac Ext Turns Passed 1096 | 15 32 33 58 53 267 349 159 130 Spaces Moved 2634 | 30 54 63 143 131 600 887 426 300 Core 63 | 30 33 . . . . . . . Treads . | . . . . . . . . . Legs . | . . . . . . . . . Wheels . | . . . . . . . . . Hover . | . . . . . . . . . Flight 2571 | . 21 63 143 131 600 887 426 300 Fastest Speed 34 | 50 40 40 40 40 37 34 34 34 Average Speed 36 | 50 46 40 40 40 37 34 34 34 Slowest Speed 50 | 50 50 40 40 40 40 37 34 34 Overloaded Moves . | . . . . . . . . . Propulsion Burnouts . | . . . . . . . . . Robots Hopped 15 | . . . 3 . 2 5 1 4 Cave-ins Triggered . | . . . . . . . . . Exploration Rate (%) 21 | 2 25 20 28 18 23 38 14 29 Regions Visited 8 Branch Regions 2 Pre-discovered Areas . | . . . . . . . . . Known Exits Taken 3 | . . . 1 . . 1 1 . Unknown Exits Taken 5 | 1 1 1 . 1 1 . . . Scrap Searched . | . . . . . . . . . Spaces Dug 2 | . . . . . . 1 1 . Terrain Destroyed 2 | . . . . . . 1 1 . Melee 2 | . . . . . . 1 1 . Projectile . | . . . . . . . . . AOE . | . . . . . . . . . Actions | -11 -10 -10 -9 -8 -7 -6 -5 -5 --------- Run | Scr Mat Min Mat Mat Fac Fac Fac Ext Total 2738 | 29 58 69 140 130 634 920 436 322 Wait 76 | . . 2 . . 21 20 11 22 Move 2599 | 29 53 62 138 130 595 876 423 293 Hop 12 | . . . 1 . 2 5 1 3 Pick Up 2 | . . 1 . . . 1 . . Fast Attach 21 | . 4 1 . . 6 8 . 2 Attach 2 | . . . 1 . . 1 . . Detach 2 | . . . . . . 2 . . Swap 1 | . . . . . . 1 . . Drop 10 | . 1 . . . 3 5 . 1 Fire 1 | . . . . . 1 . . . Melee 3 | . . . . . . 1 1 1 Ram . | . . . . . . . . . Kick . | . . . . . . . . . Crush . | . . . . . . . . . Escape Stasis . | . . . . . . . . . Rewire . | . . . . . . . . . Trap . | . . . . . . . . . Miscellaneous 9 | . . 3 . . 6 . . . Route ------- -11/Scrapyard -10/Materials -10/Mines -9/Materials (discovered 4 exits: *Mat x3 / Min) -8/Materials -7/Factory (discovered 4 exits: *Fac / Sto / Low x2) -6/Factory (discovered 6 exits: *Fac x4 / Low x2) -5/Factory (discovered 4 exits: Upp x2 / *Ext x2) -5/Extension History --------- Turn | Location | Event 7 | -11/Scrapyard | Discovered new exit (range 16) 16 | -11/Scrapyard | Entered Materials 38 | -10/Materials | Discovered new exit (range 14) 48 | -10/Materials | Entered Mines 55 | -10/Mines | Discovered new exit (range 11) 61 | -10/Mines | Met a Derelict shopkeep closing up shop 81 | -10/Mines | Entered Materials 83 | -9/Materials | Reached level 2 86 | -9/Materials | Upgraded with Power slot (x1) 86 | -9/Materials | Upgraded with Propulsion slot (x1) 86 | -9/Materials | Upgraded with Utility slot (x1) 115 | -9/Materials | Identified exit to Mines 130 | -9/Materials | Identified exit to Materials 139 | -9/Materials | Entered another Materials area 141 | -8/Materials | Reached level 3 142 | -8/Materials | Upgraded with Utility slot (x1) 186 | -8/Materials | Discovered new exit (range 16) 192 | -8/Materials | Entered Factory 193 | -7/Factory | Identified exit to Storage 194 | -7/Factory | Reached level 4 250 | -7/Factory | Core integrity fell below 50% 338 | -7/Factory | Build established: Hacker-Mutant 395 | -7/Factory | Identified exit to Lower Caves 446 | -7/Factory | Discovered new exit (range 16) 459 | -7/Factory | Entered another Factory area 459 | -6/Factory | Accompanied by 1 ally 461 | -6/Factory | Reached level 5 511 | -6/Factory | Upgraded with Utility slot (x2) 570 | -6/Factory | Core integrity fell below 50% 778 | -6/Factory | Identified exit to Factory 778 | -6/Factory | Identified exit to Lower Caves 808 | -6/Factory | Entered another Factory area 808 | -5/Factory | Accompanied by 1 ally 809 | -5/Factory | Core integrity fell below 50% 810 | -5/Factory | Reached level 6 911 | -5/Factory | Identified exit to Upper Caves 911 | -5/Factory | Identified exit to Extension 911 | -5/Factory | Reached level 7 911 | -5/Factory | Upgraded with Utility slot (x2) 966 | -5/Factory | Central database locked down 967 | -5/Factory | Entered Extension 967 | -5/Extension | Accompanied by 1 ally 1021 | -5/Extension | Spotted B-75 Beast 1058 | -5/Extension | Rescued a captive Derelict 1064 | -5/Extension | Core integrity fell below 20% 1097 | -5/Extension | Destroyed by Y-64 Sentinel with Wave Gun Last Messages --------------- Terminal linked with 0 systems. Awaiting botnet instructions. >>Trojan(Track) Trojan loaded successfully. Testing... Tracking enabled and active. >>Trojan(Disrupt) Trojan loaded successfully. Testing... Disruption routine running. >>Layout(Zone) Retrieving Zone 2K layout... Downloaded map data. 01058_ Q8-REK(g): "Free at last!" 01063_ Penetrated by Slug. 01087_ Slug penetrates Wall. 01087_ Penetrated by Slug. 01090_ Acquired Lgt. Nuclear Core. 01092_ Dropped Lgt. Nuclear Core. 01092_ Acquired 10 matter. Map ----- +----------------------------------------------------+ | | | | | | | | | | | | | | | | | | | | | | | | | ?????????????????????????????????????????????????? | | ?????????????????????????????????????????????????? | | ?????????????????????????????????????????????????? | | ?????????????????############????????????????????? | | ?????????????????# #????????????????????? | | ?????????????????# #????????????????????? | | ?????????????????# #####????????????????? | | ####?????????????# ?????????????? | | ####?????????????# #???????????? | | # ##?????????????# """"""" #???????????? | | # ##?????????????# """"""" #???????????? | | # T#?????????????# #???????????? | | # ################ #???????????? | | Y%!s%*%= @ #???????????? | | =Y##########+####### ###### #???????????? | | =#???# = #????? Y#????????????????????? | | #???# #??????##????????????????????? | | ##### #????????????????????????????? | | u + = =#????????????????????????????? | | #######"### ] #????????????????????????????? | | ###?????###?#########????????????????????????????? | | ?????????????????????????????????????????????????? | | ?????????????????????????????????????????????????? | | ?????????????????????????????????????????????????? | | ?????????????????????????????????????????????????? | | ?????????????????????????????????????????????????? | | ?????????????????????????????????????????????????? | | ?????????????????????????????????????????????????? | | ?????????????????????????????????????????????????? | | ?????????????????????????????????????????????????? | | ?????????????????????????????????????????????????? | | ?????????????????????????????????????????????????? | | ?????????????????????????????????????????????????? | | ?????????????????????????????????????????????????? | | ###??????????????????????????????????????????????? | | #??????????????????????????????????????????????? | | ################################################ | | !! | +----------------------------------------------------+ Best States ------------- Heat Dissipation 25 Energy Generation 19 Energy Capacity 185 Matter Stores 300 Matter Capacity 300 Sight Range 16 Terrain Scan Density 210 Base Temperature (-) 150 Evasion (%) 73 Offensive Hacking 25 Defensive Hacking 35 Item Schematics ----------------- Exp. Sensor Array | -5/Factory | Hacked Robot Schematics ------------------ H-66 Slayer | -6/Factory | Hacked Fabricated ------------ Nothing Alien Tech Used ----------------- None Achievements -------------- None Challenges ------------ None RPGLIKE | -11 -10 -10 -9 -8 -7 -6 -5 -5 --------- Run | Scr Mat Min Mat Mat Fac Fac Fac Ext Levels Raised 6 | . . . 1 1 1 1 2 . XP Earned 13402 | 3000 . 600 1635 1682 1815 1570 1700 1400 XP Spent 11450 | . . 2950 1500 800 . 2500 3700 . Upgrades 15 | . . 7 3 1 . 2 2 . Power Slot 1 | . . . 1 . . . . . Propulsion Slot 1 | . . . 1 . . . . . Utility Slot 6 | . . . 1 1 . 2 2 . Inventory Capacity 1 | . . 1 . . . . . . Hack Attack % 3 | . . 3 . . . . . . Hack Defense % 3 | . . 3 . . . . . . Protomatter Created 26 | . . . . . 26 . . . Integrity Restored 184 | . . 43 . . 141 . . . Core 176 | . . 35 . . 141 . . . Parts 8 | . . 8 . . . . . . Protomatter Decayed 13 | . 13 . . . . . . . Game ------ Seed EnergyLauncherAxe Manual? 0 Play Time 00:38:41 Cumulative 88.5 hours Start 2019.12.21 @ 15:07:57 End 2019.12.21 @ 17:32:09 Sessions 1 Manual Loads 0 Difficulty Rogue Special Mode Winter2019/RPGLIKE Game No. 118 Rogue 118 Adventurer 0 Explorer 0 Win Type - Total 8 Types 7/0/0/1/0/0/0 Lore% 38 Gallery% 60 Achievement% 48 Wizard Run 0 Options --------- ASCII 0 Keyboard 0 Movement Numpad Keybinds 0 Fullscreen 2 Font 18/SmallcapsGlow Map View 76x50 Tactical HUD 1 Map Filters NONE Filters NONE Steam 1 RUN: 5ec76397-72f1-492f-bb53-23b82067d14b